bitfinex/quotes_SOLUSD_20250420
["timestamp","ask_amount","ask_price","bid_price","bid_amount"]
[1745114550863,18.78463589,141.49,141.44,18.07991815]
[1745114551465,18.78463589,141.49,141.44,11.71681085]
[1745114551768,11.71681085,141.48,141.44,11.71681085]
[1745114551958,18.78494768,141.48,141.43,44.08022156]
[1745114552154,18.78494768,141.48,141.43,37.71681085]
[1745114552364,18.78494768,141.48,141.44,11.71681085]
[1745114555469,11.71681085,141.51,141.46,13.33931085]
[1745114555666,11.71681085,141.49,141.46,27.6225]
[1745114555871,11.71681085,141.48,141.46,26.0]
[1745114557268,18.78494768,141.48,141.43,27.6225]
[1745114559476,18.78494768,141.48,141.44,26.0]
[1745114560068,37.43459654,141.48,141.43,1.6225]
[1745114560274,37.43459654,141.48,141.41,26.063]
[1745114561072,37.43459654,141.48,141.42,26.0]
[1745114563175,33.21740164,141.48,141.42,26.0]
[1745114566968,14.56775278,141.48,141.42,33.49961595]
[1745114567779,14.56775278,141.48,141.42,39.86353802]
[1745114569879,14.56775278,141.48,141.42,26.0]
[1745114570981,33.21740164,141.48,141.42,26.0]
[1745114574487,7.0671378,141.5,141.44,7.49961595]
[1745114574678,7.49961595,141.49,141.44,7.49961595]
[1745114574879,7.06613906,141.52,141.45,7.49961595]
[1745114575075,7.49961595,141.51,141.46,7.49961595]
[1745114575385,21.16583822,141.53,141.47,33.56261595]
[1745114575590,28.66545417,141.53,141.48,7.49961595]
[1745114576890,28.66545417,141.53,141.47,39.92412894]
[1745114576891,7.49961595,141.52,141.47,39.92412894]
[1745114577275,11.70503429,141.52,141.47,44.12954728]
[1745114578895,11.70503429,141.51,141.47,32.42468461]
[1745114580175,11.70503429,141.51,141.47,26.063]
[1745114580377,11.70503429,141.48,141.47,0.063]
[1745114581490,18.77317112,141.48,141.47,0.063]
[1745114583995,37.42281998,141.48,141.47,0.063]
[1745114586279,7.06813683,141.48,141.47,0.063]
[1745114586480,18.77317112,141.48,141.47,0.063]
[1745114591887,25.08314886,141.47,141.41,0.063]
[1745114592094,11.70503429,141.44,141.41,0.063]
[1745114592902,11.70503429,141.45,141.41,0.063]
[1745114593085,18.77514135,141.45,141.41,0.063]
[1745114593284,7.07010706,141.45,141.41,11.76803429]
[1745114594001,7.07010706,141.45,141.41,0.063]
[1745114594210,18.77514135,141.45,141.41,0.063]
[1745114595384,11.70503429,141.44,141.41,0.063]
[1745114595582,18.77428603,141.46,141.41,11.76803429]
[1745114595808,89.46874274,141.47,141.43,11.70503429]
[1745114596002,21.16780527,141.49,141.44,11.70503429]
[1745114596305,7.06563979,141.53,141.48,11.70503429]
[1745114596491,7.06563979,141.53,141.49,11.70503429]
[1745114596696,7.06563979,141.53,141.48,11.70503429]
[1745114597508,7.06563979,141.53,141.49,11.70503429]
[1745114597902,18.80035575,141.54,141.49,11.70503429]
[1745114598210,0.03,141.54,141.53,11.70503429]
[1745114598710,0.03,141.54,141.53,13.22693429]
[1745114599701,0.03,141.54,141.51,26.0]
[1745114601410,0.03,141.54,141.51,37.70503429]
[1745114602411,0.03,141.54,141.51,44.06489504]
[1745114603211,0.03,141.54,141.51,37.70503429]
[1745114603913,0.03,141.54,141.52,11.70503429]
[1745114604601,0.03,141.54,141.51,26.0]
[1745114604900,0.03,141.54,141.51,37.70503429]
[1745114605101,0.03,141.54,141.49,9.01133371]
[1745114605297,7.51943371,141.54,141.49,35.01133371]
[1745114606712,14.5550735,141.53,141.47,7.48943371]
[1745114607010,7.48943371,141.52,141.47,26.0]
[1745114607195,11.70983431,141.5,141.45,13.32153431]
[1745114607395,11.70983431,141.5,141.45,39.32153431]
[1745114607596,11.70983431,141.5,141.45,37.70983431]
[1745114607794,11.70983431,141.51,141.46,11.70983431]
[1745114607997,18.7754741,141.53,141.48,11.70983431]
[1745114608198,18.80512279,141.54,141.49,11.70983431]
[1745114613407,11.70983431,141.53,141.48,37.70983431]
[1745114614098,11.70983431,141.53,141.47,6.36161036]
[1745114614296,11.70983431,141.53,141.48,11.70983431]
[1745114614521,11.70983431,141.52,141.47,44.07144467]
[1745114614729,11.70983431,141.5,141.47,26.0]
[1745114615201,11.70983431,141.51,141.47,26.0]
[1745114615405,7.0671378,141.5,141.47,26.0]
[1745114615802,7.0671378,141.5,141.43,1.6117]
[1745114615803,11.70983431,141.48,141.43,1.6117]
[1745114616029,18.77697211,141.5,141.43,1.6117]
[1745114616229,18.77697211,141.5,141.45,11.70983431]
[1745114616533,11.70983431,141.49,141.43,39.32153431]
[1745114617121,18.77697211,141.5,141.45,11.70983431]
[1745114617821,21.16675144,141.51,141.47,11.70983431]
[1745114618125,7.06675144,141.51,141.48,11.70983431]
[1745114618619,7.06675144,141.51,141.47,11.70983431]
[1745114619316,11.70983431,141.5,141.45,26.0]
[1745114619635,11.70983431,141.5,141.45,37.70983431]
[1745114619920,18.77658575,141.51,141.46,11.70983431]
[1745114622121,7.06619684,141.52,141.47,11.70983431]
[1745114622304,7.06583296,141.53,141.49,11.70983431]
[1745114623196,7.06583296,141.53,141.5,11.70983431]
[1745114623407,7.09514059,141.54,141.5,11.70983431]
[1745114627112,7.09514059,141.54,141.5,7.48848423]
[1745114632215,7.09514059,141.54,141.51,7.48848423]
[1745114633211,0.03,141.54,141.51,7.48848423]
[1745114633407,0.03,141.54,141.53,7.48848423]
[1745114635133,0.03,141.55,141.54,33.48848423]
[1745114635336,0.03,141.55,141.54,43.43511781]
[1745114636649,0.03,141.55,141.54,39.84711076]
[1745114636834,0.03,141.55,141.54,26.0]
[1745114637425,0.03,141.55,141.51,6.35984444]
[1745114637619,0.03,141.55,141.52,33.48848423]
[1745114637830,0.03,141.55,141.53,7.48848423]
[1745114638815,0.03,141.55,141.54,7.48848423]
[1745114641442,0.03,141.55,141.54,13.84711076]
[1745114641650,0.03,141.55,141.54,7.48848423]
[1745114642525,0.03,141.55,141.54,13.84711076]
[1745114642738,0.03,141.59,141.57,26.0]
[1745114642939,0.03,141.59,141.58,7.48848423]
[1745114643323,0.03,141.59,141.57,33.48848423]
[1745114643848,0.03,141.59,141.58,7.48848423]
[1745114645442,0.03,141.59,141.58,26.0]
[1745114645652,7.06314451,141.58,141.54,7.48848423]
[1745114645826,0.03,141.59,141.57,7.48848423]
[1745114646654,0.03,141.59,141.56,33.48848423]
[1745114647154,14.58116961,141.59,141.56,26.0]
[1745114647944,18.67964886,141.59,141.56,26.0]
[1745114648142,0.03,141.59,141.56,33.48848423]
[1745114648527,0.03,141.59,141.55,7.48848423]
[1745114648730,0.03,141.59,141.55,33.48848423]
[1745114649246,18.67964886,141.59,141.55,26.0]
[1745114649437,7.48848423,141.58,141.53,33.48848423]
[1745114650041,7.06364342,141.57,141.53,33.48848423]
[1745114650260,7.06364342,141.57,141.53,7.48848423]
[1745114650654,7.06364342,141.57,141.52,7.48848423]
[1745114650847,14.55212765,141.57,141.51,7.48848423]
[1745114651050,7.48848423,141.55,141.51,26.0]
[1745114651542,26.13813309,141.56,141.51,33.48848423]
[1745114651743,7.48848423,141.55,141.5,7.48848423]
[1745114652252,7.48848423,141.55,141.49,7.48848423]
[1745114652253,7.48848423,141.54,141.49,7.48848423]
[1745114652456,7.48848423,141.54,141.49,33.48848423]
[1745114652644,14.55357113,141.55,141.5,7.48848423]
[1745114653247,18.76686295,141.55,141.5,11.70177605]
[1745114658655,18.76686295,141.55,141.49,37.70177605]
[1745114661261,18.76686295,141.55,141.49,26.0]
[1745114661768,18.76686295,141.55,141.5,11.70177605]
[1745114662948,18.76686295,141.55,141.49,44.0625353]
[1745114663361,18.76686295,141.55,141.5,11.70177605]
[1745114663576,7.0650869,141.55,141.51,11.70177605]
[1745114664266,7.0650869,141.55,141.5,11.70177605]
[1745114666165,7.0650869,141.55,141.5,18.06216779]
[1745114666367,102.14707605,141.58,141.53,11.70177605]
[1745114666692,11.70177605,141.57,141.52,11.70177605]
[1745114667253,18.76558778,141.57,141.52,11.70177605]
[1745114667451,7.06381173,141.57,141.52,11.70177605]
[1745114667657,26.8104307,141.58,141.53,11.70177605]
[1745114667947,0.03,141.59,141.56,11.70177605]
[1745114668252,0.03,141.59,141.54,11.70177605]
[1745114668253,7.09272981,141.59,141.54,11.70177605]
[1745114669475,37.44415472,141.59,141.54,11.70177605]
[1745114669851,37.44415472,141.59,141.54,26.0]
[1745114670047,11.70177605,141.56,141.51,11.70177605]
[1745114670271,11.70177605,141.55,141.49,11.70177605]
[1745114670453,11.70177605,141.55,141.5,11.70177605]
[1745114671075,30.35142491,141.56,141.5,11.70177605]
[1745114671280,7.06464146,141.55,141.5,11.70177605]
[1745114671983,7.06464146,141.55,141.51,11.70177605]
[1745114673271,7.06464146,141.55,141.51,7.48759351]
[1745114675180,14.55223497,141.55,141.5,7.48759351]
[1745114678582,14.55223497,141.55,141.5,13.84796519]
[1745114678783,7.06464146,141.55,141.51,7.48759351]
[1745114685484,7.7746,141.57,141.52,7.48759351]
[1745114685665,18.64964886,141.58,141.53,7.48759351]
[1745114685867,26.13724237,141.58,141.53,7.48759351]
[1745114686374,26.13724237,141.58,141.52,7.48759351]
[1745114686676,33.20038688,141.58,141.52,7.48759351]
[1745114690788,33.20038688,141.58,141.53,7.48759351]
[1745114691469,25.71279337,141.58,141.53,7.48759351]
[1745114691691,7.09305124,141.59,141.55,7.48759351]
[1745114692076,7.09305124,141.59,141.54,7.48759351]
[1745114692490,14.58064475,141.59,141.54,7.48759351]
[1745114693393,7.09305124,141.59,141.54,7.48759351]
[1745114693591,7.09305124,141.59,141.55,7.48759351]
[1745114693797,7.09305124,141.59,141.56,7.48759351]
[1745114694097,0.03,141.59,141.56,7.48759351]
[1745114694390,0.03,141.59,141.58,7.48759351]
[1745114694967,0.03,141.59,141.58,13.84442357]
[1745114696289,0.03,141.59,141.58,7.48759351]
[1745114697590,0.03,141.59,141.58,13.84442357]
[1745114700195,0.03,141.59,141.58,7.48759351]
[1745114700396,0.03,141.59,141.57,26.0]
[1745114700579,0.03,141.59,141.58,7.48759351]
[1745114701374,0.03,141.59,141.57,7.48759351]
[1745114701575,0.03,141.59,141.58,7.48759351]
[1745114702076,0.03,141.59,141.58,33.48759351]
[1745114702892,0.03,141.59,141.58,8.99579351]
[1745114703289,0.03,141.59,141.58,34.99579351]
[1745114703494,0.03,141.59,141.58,8.99579351]
[1745114703695,0.03,141.59,141.58,15.35262357]
[1745114706081,0.03,141.63,141.6,33.48759351]
[1745114706288,0.03,141.63,141.62,7.48759351]
[1745114708601,0.03,141.63,141.62,13.8426281]
[1745114710614,0.03,141.63,141.62,17.3858093]
[1745114711111,0.03,141.63,141.62,7.48759351]
[1745114711298,0.03,141.63,141.62,33.48759351]
[1745114712505,0.03,141.63,141.62,39.8426281]
[1745114713212,0.03,141.63,141.62,13.8426281]
[1745114714008,0.03,141.63,141.62,33.48759351]
[1745114719819,0.03,141.63,141.62,39.8426281]
[1745114719995,0.03,141.63,141.62,13.8426281]
[1745114723116,0.03,141.63,141.62,39.8426281]
[1745114727225,0.03,141.63,141.62,13.8426281]
[1745114729017,0.03,141.63,141.62,39.8426281]
[1745114729233,0.03,141.63,141.62,13.8426281]
[1745114729923,0.03,141.63,141.62,7.48759351]
[1745114730218,7.51759351,141.63,141.57,13.84487259]
[1745114730421,7.51759351,141.63,141.58,26.0]
[1745114730807,7.51759351,141.63,141.58,33.48759351]
[1745114731220,0.03,141.63,141.59,13.84397461]
[1745114731425,0.03,141.63,141.6,7.48759351]
[1745114732207,0.03,141.63,141.59,13.84397461]
[1745114733509,0.03,141.63,141.6,7.48759351]
[1745114738709,0.03,141.63,141.59,13.84397461]
[1745114738907,7.51759351,141.63,141.58,33.48759351]
[1745114739311,7.48759351,141.62,141.58,26.0]
[1745114739514,7.48759351,141.62,141.57,7.48759351]
[1745114739816,7.48759351,141.62,141.57,33.48759351]
[1745114740208,7.48759351,141.62,141.55,6.35809617]
[1745114740421,7.48759351,141.6,141.55,7.48759351]
[1745114740717,26.13724237,141.61,141.56,33.48759351]
[1745114740930,7.06214689,141.6,141.56,33.48759351]
[1745114748141,7.48759351,141.57,141.54,0.063]
[1745114748438,14.55223497,141.55,141.54,0.063]
[1745114749838,22.0402,141.59,141.54,7.55059351]
[1745114750020,22.0402,141.59,141.55,7.48759351]
[1745114750220,29.52779351,141.59,141.54,7.55059351]
[1745114750540,22.0402,141.59,141.54,7.55059351]
[1745114750739,7.06314451,141.58,141.54,7.55059351]
[1745114752329,7.06314451,141.58,141.54,0.063]
[1745114752330,33.20038688,141.58,141.54,0.063]
[1745114752520,7.48759351,141.57,141.54,0.063]
[1745114752938,7.48759351,141.56,141.54,0.063]
[1745114754040,7.06464146,141.55,141.54,0.063]
[1745114754419,14.55223497,141.55,141.54,0.063]
[1745114755739,33.20188383,141.55,141.54,0.063]
[1745114756545,25.71429032,141.55,141.54,0.063]
[1745114758023,7.06464146,141.55,141.54,0.063]
[1745114760144,7.48759351,141.55,141.54,0.063]
[1745114761940,14.55223497,141.55,141.54,0.063]
[1745114762445,7.06464146,141.55,141.54,0.063]
[1745114763437,7.48759351,141.55,141.54,0.063]
[1745114763639,26.13724237,141.55,141.54,0.063]
[1745114765541,33.20188383,141.55,141.54,0.063]
[1745114767436,101.04964886,141.54,141.5,0.063]
[1745114767643,33.20388077,141.51,141.5,0.063]
[1745114772466,82.4,141.53,141.5,0.063]
[1745114773457,82.4,141.57,141.5,7.55059351]
[1745114773641,32.72964886,141.56,141.52,7.48759351]
[1745114774039,32.72964886,141.56,141.53,7.48759351]
[1745114774264,32.72964886,141.56,141.52,7.48759351]
[1745114774761,39.7942366,141.56,141.52,7.48759351]
[1745114776361,47.28183011,141.56,141.51,7.48759351]
[1745114777356,39.7942366,141.56,141.51,7.48759351]
[1745114778054,39.7942366,141.56,141.51,13.84746917]
[1745114778252,14.08,141.56,141.51,13.84746917]
[1745114778850,21.14426174,141.56,141.51,13.84746917]
[1745114779170,7.06563979,141.53,141.5,0.063]
[1745114779559,14.5532333,141.53,141.5,0.063]
[1745114781259,14.55292956,141.54,141.5,0.063]
[1745114781466,7.06533605,141.54,141.5,7.55059351]
[1745114781874,7.06533605,141.54,141.5,0.063]
[1745114783353,14.55292956,141.54,141.5,0.063]
[1745114784277,7.48759351,141.54,141.5,0.063]
[1745114784445,21.14470858,141.55,141.51,7.48759351]
[1745114784647,26.13724237,141.54,141.5,0.063]
[1745114785569,7.06563979,141.53,141.5,0.063]
[1745114786179,26.13724237,141.52,141.5,0.063]
[1745114786379,7.48759351,141.51,141.5,0.063]
[1745114786557,26.13724237,141.51,141.5,0.063]
[1745114787770,33.20388077,141.51,141.5,0.063]
[1745114791377,33.20388077,141.51,141.5,1e-08]
[1745114794489,26.13724237,141.49,141.48,0.063]
[1745114794696,40.21724237,141.49,141.48,0.063]
[1745114795772,47.28487965,141.49,141.48,0.063]
[1745114796190,55.43817965,141.49,141.48,0.063]
[1745114799368,26.0,141.47,141.46,0.063]
[1745114799572,18.64964886,141.46,141.45,0.063]
[1745114799879,40.21724237,141.46,141.45,0.063]
[1745114800090,40.21724237,141.46,141.45,1e-08]
[1745114800272,40.21724237,141.46,141.41,0.063]
[1745114800273,40.21724237,141.46,141.44,1e-08]
[1745114800475,26.13724237,141.45,141.44,1e-08]
[1745114801375,18.64964886,141.44,141.41,0.063]
[1745114801561,26.13724237,141.42,141.41,0.063]
[1745114802577,26.13724237,141.41,141.4,0.063]
[1745114802768,122.61724237,141.41,141.4,0.063]
[1745114803389,108.53724237,141.41,141.4,0.063]
[1745114803599,129.68887803,141.41,141.4,0.063]
[1745114804993,122.60263002,141.41,141.4,0.063]
[1745114806160,7.07163566,141.41,141.4,0.063]
[1745114808481,25.72128452,141.41,141.4,0.063]
[1745114811384,33.20887803,141.41,141.4,0.063]
[1745114813076,25.72128452,141.41,141.4,0.063]
[1745114814498,21.15115465,141.42,141.4,0.063]
[1745114815883,14.08,141.42,141.4,0.063]
[1745114816199,25.72047803,141.43,141.4,0.063]
[1745114816200,32.72964886,141.44,141.4,0.063]
[1745114816876,40.21724237,141.44,141.4,0.063]
[1745114817706,7.07063565,141.43,141.4,0.063]
[1745114818289,39.7999641,141.44,141.4,0.063]
[1745114819188,47.28755761,141.44,141.4,0.063]
[1745114819898,7.48759351,141.43,141.4,0.063]
[1745114820599,39.7999641,141.44,141.4,0.063]
[1745114820893,7.48759351,141.43,141.4,0.063]
[1745114821503,14.55872053,141.43,141.4,0.063]
[1745114823700,7.07112702,141.43,141.4,0.063]
[1745114825594,14.55872053,141.43,141.4,0.063]
[1745114826302,18.64964886,141.42,141.4,0.063]
[1745114826480,26.13724237,141.41,141.4,0.063]
[1745114826685,18.64964886,141.41,141.4,0.063]
[1745114827385,25.72128452,141.41,141.4,0.063]
[1745114830209,7.07132514,141.42,141.4,0.063]
[1745114830502,25.720974,141.42,141.4,0.063]
[1745114830902,7.07082349,141.43,141.4,0.063]
[1745114834325,122.61724237,141.44,141.4,0.063]
[1745114834326,25.7199943,141.44,141.4,0.063]
[1745114834614,39.7999943,141.44,141.4,7.55059351]
[1745114834993,39.7999943,141.44,141.4,0.063]
[1745114834994,7.48759351,141.43,141.4,0.063]
[1745114835608,18.64964886,141.43,141.4,0.063]
[1745114835811,26.13724237,141.43,141.4,0.063]
[1745114836314,18.64964886,141.43,141.4,0.063]
[1745114836822,25.72073281,141.43,141.4,0.063]
[1745114839616,33.20832632,141.43,141.4,0.063]
[1745114839810,26.13724237,141.41,141.4,0.063]
[1745114840810,33.20887803,141.41,141.4,0.063]
[1745114843025,25.72128452,141.41,141.4,0.063]
[1745114843207,7.07163566,141.41,141.4,0.063]
[1745114852641,33.20887803,141.41,141.4,0.063]
[1745114853139,25.72128452,141.41,141.4,0.063]
[1745114853721,33.20887803,141.41,141.4,0.063]
[1745114857045,25.72128452,141.41,141.4,0.063]
[1745114858744,33.20887803,141.41,141.4,0.063]
[1745114861038,25.72128452,141.41,141.4,0.063]
[1745114862248,7.07113562,141.42,141.4,0.063]
[1745114868537,25.72128452,141.41,141.4,0.063]
[1745114870842,7.07113562,141.42,141.4,0.063]
[1745114875459,14.55872913,141.42,141.4,0.063]
[1745114876144,7.07113562,141.42,141.4,0.063]
[1745114878366,7.07113562,141.42,141.38,7.05059351]
[1745114878566,24.74897468,141.42,141.38,7.05059351]
[1745114882265,24.74897468,141.42,141.37,7.55059351]
[1745114888158,7.07113562,141.42,141.39,7.48759351]
[1745114890068,7.07113562,141.42,141.4,7.48759351]
[1745114892777,7.07113562,141.42,141.37,0.063]
[1745114892960,7.07113562,141.42,141.39,7.48759351]
[1745114894057,7.07113562,141.42,141.38,7.48759351]
[1745114894470,26.13724237,141.41,141.37,0.063]
[1745114894773,26.13724237,141.38,141.37,0.063]
[1745114895662,18.64964886,141.38,141.37,0.063]
[1745114895860,26.13724237,141.38,141.37,0.063]
[1745114896454,33.21037859,141.38,141.37,0.063]
[1745114897463,7.07313622,141.38,141.37,0.063]
[1745114900369,33.21037859,141.38,141.37,0.063]
[1745114909366,115.61037859,141.38,141.37,0.063]
[1745114914403,18.64964886,141.37,141.34,0.063]
[1745114914593,7.48759351,141.36,141.34,0.063]
[1745114915591,7.07463742,141.35,141.34,0.063]
[1745114918076,25.72428628,141.35,141.34,0.063]
[1745114930506,7.07463742,141.35,141.34,0.063]
[1745114930917,25.72397311,141.36,141.34,7.55059351]
[1745114931913,89.47375688,141.37,141.35,7.48759351]
[1745114935402,7.07375688,141.37,141.35,7.48759351]
[1745114939512,7.07375688,141.37,141.34,7.55059351]
[1745114941414,7.07375688,141.37,141.35,7.48759351]
[1745114941992,7.07375688,141.37,141.34,7.55059351]
[1745114945201,7.07375688,141.37,141.35,7.48759351]
[1745114948127,7.07375688,141.37,141.34,7.55059351]
[1745114948839,25.72292762,141.38,141.35,7.48759351]
[1745114949118,55.2264,141.42,141.37,7.48759351]
[1745114949119,7.07113562,141.42,141.37,7.48759351]
[1745114949321,0.03,141.43,141.41,7.48759351]
[1745114949622,0.03,141.43,141.42,7.48759351]
[1745114962235,0.03,141.43,141.42,13.85161557]
[1745114966043,0.03,141.44,141.42,13.85161557]
[1745114966224,0.03,141.48,141.45,26.0]
[1745114966419,0.03,141.48,141.47,7.48759351]
[1745114966635,0.03,141.48,141.46,7.48759351]
[1745114966837,0.03,141.48,141.47,7.48759351]
[1745114967563,7.09813683,141.48,141.46,7.48759351]
[1745114970063,7.09813683,141.48,141.39,7.8662]
[1745114970366,7.09813683,141.48,141.44,7.48759351]
[1745114970752,14.58573034,141.48,141.43,7.48759351]
[1745114970953,7.09813683,141.48,141.44,7.48759351]
[1745114972571,18.64964886,141.47,141.44,7.48759351]
[1745114972963,7.06913615,141.46,141.44,7.48759351]
[1745114973361,7.06875557,141.47,141.45,7.48759351]
[1745114974569,7.09813683,141.48,141.45,7.48759351]
[1745114976772,7.09813683,141.48,141.42,26.0]
[1745114976976,7.09813683,141.48,141.45,7.48759351]
[1745114979768,7.09813683,141.48,141.42,26.0]
[1745114979968,7.09813683,141.48,141.45,7.48759351]
[1745114980279,7.09813683,141.48,141.44,7.48759351]
[1745114980773,32.25607243,141.48,141.43,7.48759351]
[1745114983680,24.76847892,141.48,141.43,7.48759351]
[1745114987490,24.76847892,141.48,141.44,7.48759351]
[1745114987676,24.76847892,141.48,141.42,26.0]
[1745114987677,18.64964886,141.47,141.45,7.48759351]
[1745114992485,25.71863317,141.47,141.45,7.48759351]
[1745114993783,25.71863317,141.47,141.44,7.48759351]
[1745114993981,25.71863317,141.47,141.42,26.0]
[1745114994182,25.71863317,141.47,141.44,7.48759351]
[1745114994384,25.71863317,141.47,141.42,26.0]
[1745114994587,25.71863317,141.47,141.43,7.48759351]
[1745114994783,25.71863317,141.47,141.39,33.9304942]
[1745114994988,43.39022432,141.47,141.42,7.48759351]
[1745114995700,50.87781783,141.47,141.42,7.48759351]
[1745114995999,26.13724237,141.45,141.39,26.0]
[1745114996181,26.13724237,141.45,141.4,7.48759351]
[1745114996577,24.7454751,141.44,141.4,7.48759351]
[1745114996778,24.7454751,141.44,141.39,7.48759351]
[1745114996985,24.7454751,141.44,141.4,7.48759351]
[1745115000792,32.23306861,141.44,141.39,7.48759351]
[1745115000988,7.48759351,141.42,141.37,0.063]
[1745115001207,18.64964886,141.4,141.37,0.063]
[1745115001405,18.64964886,141.4,141.38,7.48759351]
[1745115001592,18.64964886,141.42,141.38,7.48759351]
[1745115002715,18.64964886,141.4,141.38,7.48759351]
[1745115005019,7.07263597,141.39,141.38,7.48759351]
[1745115006516,7.07228146,141.4,141.38,7.48759351]
[1745115007015,7.07163566,141.41,141.38,7.48759351]
[1745115010019,108.53724237,141.4,141.37,0.063]
[1745115010219,7.48759351,141.39,141.37,0.063]
[1745115010723,115.10964886,141.4,141.37,0.063]
[1745115010724,122.59724237,141.4,141.37,0.063]
[1745115011224,115.10964886,141.4,141.37,7.55059351]
[1745115011418,115.10964886,141.4,141.38,7.48759351]
[1745115011721,115.10964886,141.4,141.37,7.55059351]
[1745115012225,7.07263597,141.39,141.37,7.55059351]
[1745115012414,39.78196157,141.4,141.38,7.48759351]
[1745115012600,39.78196157,141.4,141.39,7.48759351]
[1745115014629,39.78196157,141.4,141.38,7.48759351]
[1745115015824,39.78196157,141.4,141.37,7.55059351]
[1745115018608,39.78196157,141.4,141.37,0.063]
[1745115018811,7.48759351,141.39,141.37,0.063]
[1745115019734,147.34989454,141.4,141.37,0.063]
[1745115021425,139.86230103,141.4,141.37,0.063]
[1745115021629,39.78196157,141.4,141.37,7.55059351]
[1745115024326,39.78196157,141.4,141.37,0.063]
[1745115024916,18.64964886,141.38,141.37,0.063]
[1745115026431,25.72278508,141.38,141.37,0.063]
[1745115029732,7.07313622,141.38,141.37,7.55059351]
[1745115030126,7.07313622,141.38,141.37,0.063]
[1745115040545,25.72248869,141.39,141.37,0.063]
[1745115041528,7.07213578,141.4,141.37,7.55059351]
[1745115041724,25.72178464,141.4,141.39,7.48759351]
[1745115042132,25.72178464,141.4,141.38,7.48759351]
[1745115045353,89.47183649,141.41,141.38,7.48759351]
[1745115046852,18.64964886,141.4,141.37,7.55059351]
[1745115047035,18.64964886,141.4,141.37,0.063]
[1745115048561,7.07263597,141.39,141.37,0.063]
[1745115052244,18.64964886,141.38,141.37,0.063]
[1745115053959,25.72278508,141.38,141.37,0.063]
[1745115057573,33.21037859,141.38,141.37,0.063]
[1745115062184,25.72278508,141.38,141.37,0.063]
[1745115069787,7.0701775,141.44,141.37,35.11869351]
[1745115069990,7.09828895,141.48,141.43,7.48759351]
[1745115070172,0.03,141.48,141.44,7.48759351]
[1745115070367,0.03,141.48,141.43,7.48759351]
[1745115070587,18.67964886,141.48,141.43,7.48759351]
[1745115070791,26.16724237,141.48,141.43,7.48759351]
[1745115070977,7.48759351,141.47,141.42,7.48759351]
[1745115071295,18.64964886,141.45,141.41,7.48759351]
[1745115071671,26.13724237,141.46,141.41,7.48759351]
[1745115072394,33.20649297,141.46,141.41,7.48759351]
[1745115076194,25.71889946,141.46,141.41,7.48759351]
[1745115076799,25.71889946,141.46,141.41,13.8519609]
[1745115077700,18.64964886,141.46,141.42,7.48759351]
[1745115078587,25.71882987,141.46,141.42,7.48759351]
[1745115078787,33.20642338,141.46,141.41,13.8519609]
[1745115078991,18.64964886,141.46,141.42,7.48759351]
[1745115080896,18.64964886,141.46,141.42,13.85156948]
[1745115081296,18.64964886,141.46,141.42,7.48759351]
[1745115081873,26.13724237,141.46,141.42,6.36397707]
[1745115082081,48.04834886,141.38,141.37,0.063]
[1745115082286,69.57594237,141.38,141.37,0.063]
[1745115082478,85.86034031,141.38,141.37,0.063]
[1745115082894,92.93347653,141.38,141.37,0.063]
[1745115085181,76.64907859,141.38,141.37,0.063]
[1745115085698,55.43907859,141.38,141.37,0.063]
[1745115086603,33.21037859,141.38,141.37,0.063]
[1745115086813,47.25037859,141.38,141.37,0.063]
[1745115089903,47.25037859,141.38,141.37,1e-08]
[1745115100711,33.21037859,141.38,141.37,1e-08]
[1745115100901,47.25037859,141.38,141.37,1e-08]
[1745115105812,68.46037859,141.38,141.37,1e-08]
[1745115106008,47.25037859,141.38,141.37,1e-08]
[1745115115822,68.47037859,141.38,141.37,1e-08]
[1745115116024,47.25037859,141.38,141.37,1e-08]
[1745115117317,25.72278508,141.38,141.37,1e-08]
[1745115117520,47.25037859,141.38,141.37,1e-08]
[1745115119029,7.8603,141.42,141.37,1e-08]
[1745115119030,21.52759351,141.42,141.37,7.48759352]
[1745115119206,14.04,141.42,141.37,9.13409352]
[1745115119405,18.64964886,141.41,141.37,9.13409352]
[1745115120210,7.07213578,141.4,141.37,1.64650001]
[1745115121738,18.64964886,141.39,141.37,1.64650001]
[1745115121920,26.13724237,141.39,141.37,1e-08]